[Event "Czech Open-Rapid 2022"]
[Site "Pardubice"]
[Date "2022.07.21"]
[Round "4.18"]
[White "Krak, Tomas"]
[Black "Kovalskyi, Roman"]
[Result "1-0"]
[ECO "B36"]
[WhiteElo "2312"]
[BlackElo "2056"]
[Annotator "TA"]
[PlyCount "120"]
[EventDate "2022.07.20"]
[EventType "swiss"]
[EventCountry "CZE"]
[SourceTitle "playchess.com"]
[Source "ChessBase"]
[SourceQuality "1"]
[TimeControl "1200+10"]

{[%evp 28,120,50,49,50,52,58,58,58,21,50,54,50,40,80,65,94,93,89,56,120,47,50,46,56,76,108,50,60,0,0,0,0,-50,-49,-36,-27,-58,-39,-56,-27,-28,-23,-68,-6,-35,0,0,0,0,172,151,183,152,159,0,0,-373,-366,-447,-447,-445,-447,-445,-444,-875,-872,-804,-771,-849,-820,-1708,-1639,-2429,-2621,-6315,-6666,-29972,-29973,-29974,-29977,-29970,-29973,-29978,-29977,-29977,-29977,-29983,-29981,-29984,-29981,-29983,-29984,-29983,-29981]} 1. e4 {[%emt 0:00:03]} c5 {[%emt 0:01:20]} 2. Nf3 {[%emt 0:00:04]} g6 {[%emt 0:00:01]} 3. d4 {[%emt 0:00:03]} cxd4 {[%emt 0:00:03]} 4. Nxd4 {[%emt 0:00:02]} Nc6 {[%emt 0:00:02]} 5. c4 {[%emt 0:00:02]} Nf6 {[%emt 0:00:01]} 6. Nc3 {[%emt 0:00:02]} d6 {[%emt 0:00:01]} 7. f3 {[%emt 0:00:05]} Bg7 {[%emt 0:00:11]} 8. Be3 {[%emt 0:00:03]} O-O {[%emt 0:00:02]} 9. Qd2 {[%emt 0:00:03]} Nxd4 {[%emt 0:00:04]} 10. Bxd4 {[%emt 0:00:02]} Bd7 {[%emt 0:00:01]} 11. Be2 {[%emt 0:00:18]} a5 {[%emt 0:00:01]} 12. b3 {[%emt 0:01:10]} Bc6 {[%emt 0:00:02]} 13. O-O {[%emt 0:00:22]} Nd7 {[%emt 0:00:03]} 14. Be3 {[%emt 0:00:02]} Nc5 {[%emt 0:00:01]} 15. Rab1 {[%emt 0:00:03]} Be5 {[%emt 0:00:07] B38: Sicilian: Maroczy Bind with 5...Bg7 and 7...0-0.} 16. g3 {[%emt 0:01:55]} e6 {[%emt 0:00:06]} 17. Nb5 {[%emt 0:00:41]} Qe7 {[%emt 0:00:20] White is slightly better.} 18. Rfd1 {[%emt 0:01:07][%cal Rb5d6]} Rfd8 {[%emt 0:00:14]} 19. Bg5 {[%emt 0:00:16]} f6 {[%emt 0:00:05]} 20. Be3 {[%emt 0:00:01] f4 is the strong threat.} Bxb5 {[%emt 0:01:04]} 21. cxb5 {[%emt 0:00:04] [#]} f5 $146 {[%emt 0:00:06]} ({Predecessor:} 21... d5 22. exd5 exd5 23. Bf2 b6 24. Rbc1 Kh8 25. Qc2 Rac8 26. f4 Bc7 27. Bg4 f5 {1-0 (37) Kolchin,M (1728)-Kuleba,I (1589) St Petersburg 2017}) 22. exf5 {[%emt 0:01:39]} gxf5 {[%emt 0:00:05]} 23. Rbc1 {[%emt 0:00:45]} Kh8 {[%emt 0:00:12]} (23... b6 $1 $14) 24. Bd4 {[%emt 0:02:05]} (24. b6 $16) 24... Bxd4+ {[%emt 0:01:33]} 25. Qxd4+ {[%emt 0:00:01]} e5 {[%emt 0:00:02]} 26. Qd5 {[%emt 0:00:18]} Ne6 {[%emt 0:00:09] [#]} 27. Bc4 {[%emt 0:01:16]} (27. b6 $1 $16) 27... Nd4 $14 {[%emt 0:00:03]} 28. Rxd4 {[%emt 0:00:53]} (28. Re1 $14 Re8 29. Rcd1) 28... exd4 $11 {[%emt 0:00:03]} 29. Qxd4+ {[%emt 0:00:02]} Qe5 {[%emt 0:00:24]} 30. Rd1 {[%emt 0:00:11]} (30. Qd2 $1 $11) 30... Qxd4+ $15 {[%emt 0:00:34]} 31. Rxd4 {[%emt 0:00:02][%mdl 4096] Endgame KRR-KRB} Rac8 {[%emt 0:00:22][%cal Od6d5]} 32. a4 {[%emt 0:01:18]} Rc5 {[%emt 0:00:39]} 33. Kf2 {[%emt 0:00:39]} Kg7 {[%emt 0:00:31] Black wants to play ...d5.} 34. Ke3 {[%emt 0:02:43]} Kf6 {[%emt 0:01:14]} 35. Rh4 {[%emt 0:01:35]} Rd7 {[%emt 0:01:15]} (35... d5 $15 36. Bd3 Rc3) 36. Kd4 {[%emt 0:00:13]} b6 {[%emt 0:00:30]} 37. Rh6+ {[%emt 0:00:51]} Kg7 {[%emt 0:00:34]} 38. Re6 {[%emt 0:00:16]} h6 $2 {[%emt 0:00:17] [#]} (38... Kf7 $11 {and Black has nothing to worry.} 39. Bd5 Kf8) 39. Re8 $1 $18 {[%emt 0:00:12]} d5 {[%emt 0:05:42]} 40. Bd3 {[%emt 0:00:03]} Rc1 {[%emt 0:00:19]} 41. Bxf5 $2 {[%emt 0:01:23]} ({White should try} 41. Re6 $16) 41... Rf7 $11 {[%emt 0:00:10]} 42. g4 {[%emt 0:00:14][%mdl 8192] White is now going downhill.} (42. Rc8 $11 {and White is okay.} Rxc8 43. Bxc8) 42... Rd1+ $19 {[%emt 0:00:45]} 43. Kc3 {[%emt 0:02:06]} Rc7+ {[%emt 0:00:45]} 44. Kb2 {[%emt 0:00:00]} Rd2+ {[%emt 0:01:04]} 45. Kb1 {[%emt 0:00:01]} d4 {[%emt 0:00:17] Threatens to win with ...Rd1+.} 46. Rc8 {[%emt 0:00:35]} (46. Re6 $142 Rc3 47. Rxb6 Rxh2 48. Rc6 Rxb3+ 49. Kc1) 46... Rxc8 47. Bxc8 {[%emt 0:00:01] KR-KB} Rd3 {[%emt 0:00:37]} 48. Be6 {[%emt 0:01:14]} Rxf3 {[%emt 0:00:02]} 49. b4 {[%emt 0:00:02]} axb4 {[%emt 0:00:03] aiming for ...Kf6.} 50. a5 {[%emt 0:00:10]} bxa5 {[%emt 0:00:07][%cal Bb6a5,Ba5a4][%mdl 32]} 51. b6 {[%emt 0:00:00]} Rf8 {[%emt 0:01:16] ( -> ...Rb8)} (51... Kf6 $2 52. b7 Kxe6 53. b8=Q $18) 52. b7 {[%emt 0:00:04]} Rb8 {[%emt 0:00:01] Black mates.} 53. Bd5 {[%emt 0:00:40]} a4 {[%emt 0:00:21]} 54. Kc2 {[%emt 0:00:16]} Kf6 {[%emt 0:00:02]} 55. h4 {[%emt 0:00:06]} Ke5 {[%emt 0:00:10]} 56. Bc6 {[%emt 0:00:06]} Kf4 {[%emt 0:00:21]} 57. g5 {[%emt 0:00:32]} hxg5 {[%emt 0:00:01]} 58. hxg5 {[%emt 0:00:01]} Kxg5 {[%emt 0:00:01]} 59. Kd3 {[%emt 0:00:01]} a3 {[%emt 0:00:17]} 60. Bd5 {[%emt 0:00:19] [#]} Rxb7 $3 {[%emt 0:00:01][%mdl 33280] Weighted Error Value: White=0.88/Black=0.18 (very precise) . Loss on time!?} 1-0

[Event "Czech Open-Rapid 2022"]
[Site "Pardubice"]
[Date "2022.07.21"]
[Round "4.19"]
[White "Jurek, Josef"]
[Black "Kokes, Bohuslav"]
[Result "1-0"]
[ECO "A30"]
[WhiteElo "2200"]
[BlackElo "1909"]
[Annotator "TA"]
[PlyCount "69"]
[EventDate "2022.07.20"]
[EventType "swiss"]
[EventCountry "CZE"]
[SourceTitle "playchess.com"]
[Source "ChessBase"]
[SourceQuality "1"]
[TimeControl "1200+10"]

{[%evp 12,69,35,44,56,52,30,50,44,46,56,14,17,14,15,0,27,20,7,5,39,29,35,31,27,22,27,17,25,17,89,97,93,68,73,71,68,56,166,171,145,-361,192,175,175,168,304,213,483,284,287,288,266,268,375,380,377,383,385,297]} 1. Nf3 {[%emt 0:00:03]} c5 {[%emt 0:00:43]} 2. c4 {[%emt 0:00:04]} e6 {[%emt 0:00:20]} 3. g3 {[%emt 0:00:11]} b6 {[%emt 0:00:27]} 4. Bg2 {[%emt 0:00:14]} Bb7 {[%emt 0:00:05]} 5. O-O {[%emt 0:00:23]} Nf6 {[%emt 0:00:12]} 6. Nc3 {[%emt 0:00:06]} Be7 {[%emt 0:01:05]} 7. d4 {[%emt 0:00:24]} d5 {[%emt 0:02:40] A30: Symmetrical English: Double Fianchetto and Hedgehog.} 8. cxd5 {[%emt 0:00:28]} (8. dxc5 {looks sharper.} Bxc5 9. Bg5 dxc4 10. Qa4+) 8... Nxd5 {[%emt 0:00:47]} 9. Nxd5 {[%emt 0:01:02]} Bxd5 {[%emt 0:00:19] White is slightly better.} 10. dxc5 {[%emt 0:01:22]} Bxc5 {[%emt 0:00:29]} 11. Qa4+ {[%emt 0:02:05]} Qd7 {[%emt 0:00:48]} 12. Qg4 {[%emt 0:00:46]} O-O $1 {[%emt 0:02:04] [#]} 13. Ne5 $146 {[%emt 0:02:22]} ({Predecessor:} 13. Rd1 Qe7 14. e4 Bb7 15. e5 Rc8 16. Bg5 Qf8 17. Rac1 Bd5 18. b4 Bxb4 19. Qxb4 Rxc1 20. Qxf8+ {1-0 (20) Wietschke,R (1930)-Krueger,T (1593) Liberec 2018}) 13... Qe7 {[%emt 0:02:32]} 14. Bxd5 {[%emt 0:01:05]} ({Don't blunder} 14. Bh6 $2 f5 15. Qg5 Bxg2 16. Kxg2 Qb7+ 17. Kg1 Bd4 $19) 14... exd5 {[%emt 0:00:04]} 15. Bf4 $36 {[%emt 0:01:23][%mdl 2048] White is more active.} Bd6 {[%emt 0:00:46]} 16. Nd3 {[%emt 0:00:42]} Nd7 {[%emt 0:00:31]} 17. Bxd6 {[%emt 0:00:36]} Qxd6 {[%emt 0:00:05]} 18. e3 {[%emt 0:00:50]} Nf6 {[%emt 0:01:23]} 19. Qf4 {[%emt 0:01:07]} Rfd8 {[%emt 0:00:13]} 20. Rfd1 {[%emt 0:00:51]} d4 {[%emt 0:01:56]} (20... Qe6 $11 {keeps the balance.}) 21. Ne5 $16 {[%emt 0:00:13]} Re8 {[%emt 0:00:02]} 22. exd4 {[%emt 0:00:10]} Rad8 {[%emt 0:00:29]} 23. a3 {[%emt 0:00:37] White is more active.} Qd5 {[%emt 0:00:15]} 24. Rac1 {[%emt 0:00:24]} Nd7 {[%emt 0:02:06]} ({Black should try} 24... h5 $14) 25. Nc6 $18 {[%emt 0:00:27]} Ra8 {[%emt 0:02:02]} 26. Re1 $2 {[%emt 0:00:03][%mdl 8192] [#]} (26. Nb4 $16 {keeps the pressure on.} Qh5 27. d5) 26... Nf8 $4 {[%emt 0:00:04][%mdl 8192]} (26... Rxe1+ $19 {avoids the disaster.} 27. Rxe1 Qxc6) 27. Re5 {[%emt 0:01:38]} ({Don't play} 27. Ne7+ $6 Rxe7 28. Rxe7 Ng6 $16) 27... Rxe5 {[%emt 0:00:18]} 28. Qxe5 {[%emt 0:00:08]} Qd7 {[%emt 0:00:44]} (28... Qxe5 {was called for.} 29. dxe5 (29. Nxe5 Rd8 $16) 29... g6) 29. d5 {[%emt 0:00:27] Black must now prevent Ne7+.} h6 $2 {[%emt 0:00:16]} (29... Re8 30. Qd4 h6) 30. Re1 {[%emt 0:00:21]} (30. Ne7+ $142 Kh8 31. Rc6) 30... Ng6 {[%emt 0:00:07]} 31. Qd4 {[%emt 0:00:13]} Rc8 {[%emt 0:00:14]} 32. Qe4 {[%emt 0:00:32]} Kh7 {[%emt 0:00:22]} 33. h4 {[%emt 0:00:04] [#] Hoping for h5. White is winning.} h5 {[%emt 0:00:22]} 34. Qf3 {[%emt 0:00:09]} Kh6 {[%emt 0:00:20]} 35. Nd4 {[%emt 0:00:09] Weighted Error Value: White=0.50/Black=0.54} 1-0

[Event "Czech Open-Rapid 2022"]
[Site "Pardubice"]
[Date "2022.07.21"]
[Round "4.20"]
[White "Postl, Petr"]
[Black "Brejnik, Gustav"]
[Result "0-1"]
[ECO "B15"]
[WhiteElo "1900"]
[BlackElo "2292"]
[Annotator "TA"]
[PlyCount "106"]
[EventDate "2022.07.20"]
[EventType "swiss"]
[EventCountry "CZE"]
[SourceTitle "playchess.com"]
[Source "ChessBase"]
[SourceQuality "1"]
[TimeControl "1200+10"]

{[%evp 9,106,-11,-11,-2,16,9,69,6,6,-9,0,-6,10,0,0,15,20,12,45,13,47,32,34,38,91,8,109,100,105,99,113,113,90,92,128,142,148,145,154,153,161,148,146,95,216,182,168,79,70,35,44,3,37,37,23,18,86,85,493,0,0,0,-8,-23,0,-366,-394,-375,-365,-335,-345,-306,-310,-274,-260,-213,-65,-89,-42,-48,-36,-61,0,-3,0,0,0,-2177,-2795,-2409,-2368,-884,-1271,-752,0,0,0,-12848,-12846]} 1. e4 {[%emt 0:00:20]} c6 {[%emt 0:00:01]} 2. d4 {[%emt 0:00:02]} d5 {[%emt 0:00:01]} 3. Nc3 {[%emt 0:00:01][%cal Bb1c3,Bc3e4,Be4g5][%mdl 32]} dxe4 {[%emt 0:00:01]} 4. Nxe4 {[%emt 0:00:01]} Nf6 {[%emt 0:00:02]} 5. Ng5 {[%emt 0:00:13]} h6 {[%emt 0:00:21]} 6. N5f3 {[%emt 0:00:22] B15: Caro-Kann: 3 Nc3: 3...g6 and 3...dxe4 4 Nxe4 Nf6 5 Nxf6+ exf6.} Bg4 {[%emt 0:00:03]} 7. h3 {[%emt 0:00:41]} Bh5 {[%emt 0:00:03]} (7... Bf5 $11) 8. g4 {[%emt 0:00:01]} (8. Bd3 $14) 8... Bg6 $11 {[%emt 0:00:03]} 9. Bd3 {[%emt 0:00:02]} Bxd3 {[%emt 0:00:08]} 10. Qxd3 {[%emt 0:00:01]} Nbd7 {[%emt 0:00:32] [#]} 11. Bd2 $146 {[%emt 0:00:16]} ({Predecessor:} 11. Ne2 e6 12. Bf4 Be7 13. O-O-O Qa5 14. Kb1 Nd5 15. Bd2 Qc7 16. c4 N5b6 17. Bf4 {1-0 (40) Ausan,L (1168)-Winter,M (1089) LSS email 2012}) 11... e6 {[%emt 0:00:23]} 12. Ne2 {[%emt 0:02:34]} Qb6 {[%emt 0:00:17]} 13. O-O-O {[%emt 0:00:13]} O-O-O {[%emt 0:00:44]} 14. Bf4 {[%emt 0:00:33]} Nd5 {[%emt 0:01:17]} 15. Bg3 {[%emt 0:00:48]} Nb4 {[%emt 0:03:35]} 16. Qb3 {[%emt 0:00:11]} Qa6 {[%emt 0:00:02]} (16... Nd5 $14) 17. Nc3 {[%emt 0:00:10]} (17. a3 $1 $16 {[%cal Ra3b4]}) 17... Be7 {[%emt 0:00:27]} (17... c5 $1 $11) 18. a3 $1 $16 {[%emt 0:00:23]} Nd5 {[%emt 0:00:04]} 19. Nxd5 {[%emt 0:01:26]} exd5 {[%emt 0:00:42]} 20. Rhe1 {[%emt 0:00:03]} Rhe8 {[%emt 0:00:45]} 21. Re3 $36 {[%emt 0:00:17][%mdl 2048] And now Rde1 would win. Keeping Black busy.} Bf6 {[%emt 0:00:59]} 22. Rde1 $1 {[%emt 0:00:15]} Rxe3 {[%emt 0:00:02]} 23. Qxe3 {[%emt 0:00:06]} Qb6 {[%emt 0:02:08]} 24. h4 {[%emt 0:00:15] g5 is the strong threat.} g5 {[%emt 0:01:29]} 25. hxg5 {[%emt 0:00:11]} hxg5 {[%emt 0:00:01]} 26. c3 {[%emt 0:01:48]} (26. Qd3 $142) 26... c5 {[%emt 0:03:32]} (26... Rg8 $16) 27. Kb1 {[%emt 0:00:02]} ({Inferior is} 27. Nxg5 cxd4 28. cxd4 (28. Qd2 $2 Nc5 $19) 28... Bxd4 $11) 27... Rg8 {[%emt 0:00:51] [#]} 28. dxc5 {[%emt 0:03:14]} (28. Qd3 $1 $18 {has better winning chances.}) 28... Nxc5 {[%emt 0:00:52]} 29. Nd4 {[%emt 0:00:41]} Ne4 $1 {[%emt 0:00:15]} 30. Ka1 {[%emt 0:01:08]} Rd8 {[%emt 0:01:03]} 31. Qf3 {[%emt 0:01:16]} Rd7 {[%emt 0:00:52]} 32. Qf5 {[%emt 0:00:29]} Bxd4 (32... Nxg3 $11 33. fxg3 Qd8) 33. cxd4 {[%emt 0:00:05]} Qxd4 $2 {[%emt 0:00:45][%mdl 8192]} (33... Qc6 $16 {is a better chance.}) 34. Rh1 $2 {[%emt 0:01:41]} (34. Rc1+ $18 Kd8 35. Be5) 34... Qf6 $1 $11 {[%emt 0:00:31] Active counter play!} 35. Rc1+ {[%emt 0:01:10]} Kd8 {[%emt 0:00:01]} 36. Qh7 {[%emt 0:00:01]} Ke7 {[%emt 0:00:39]} 37. Qg8 $2 {[%emt 0:00:49][%mdl 8192]} (37. Bc7 $11 {and White has nothing to worry.}) 37... Rd8 $19 {[%emt 0:01:11]} 38. Rc7+ {[%emt 0:00:03]} Ke6 $1 {[%emt 0:00:00]} 39. Qh7 {[%emt 0:00:02]} Rh8 {[%emt 0:00:33] Chess con chili.} 40. Qf5+ {[%emt 0:00:08]} Qxf5 {[%emt 0:00:01]} 41. gxf5+ {[%emt 0:00:02]} Kxf5 {[%emt 0:00:04]} 42. Rxf7+ {[%emt 0:00:26][%mdl 4096] Endgame [#] KRB-KRN} Kg4 {[%emt 0:00:00]} ({Better is} 42... Ke6 $1 $19 43. Rxb7 d4) 43. Be5 $15 {[%emt 0:01:27]} Rh1+ {[%emt 0:00:16]} 44. Ka2 {[%emt 0:00:01]} Rf1 {[%emt 0:00:09]} 45. Bd4 {[%emt 0:00:13]} Kh3 {[%emt 0:00:38]} ({Black should try} 45... a6 $1 $15) 46. Rxb7 {[%emt 0:00:06]} Nxf2 {[%emt 0:00:15]} 47. Bxf2 {[%emt 0:02:42]} Rxf2 {[%emt 0:00:01]} 48. Rxa7 $2 $11 {[%emt 0:00:01][%mdl 8192] KR-KR} (48. Rh7+ $11 Kg2 49. a4) 48... g4 $19 {[%emt 0:00:13]} 49. Rh7+ {[%emt 0:00:02]} Kg2 {[%emt 0:00:03] Strongly threatening ...g3.} 50. a4 {[%emt 0:00:06]} g3 {[%emt 0:00:08] Threatens to win with ...Rf4.} 51. a5 {[%emt 0:00:04]} Kf1 $2 {[%emt 0:00:07]} ({Black should play} 51... Rf4 $19 {Hoping for ...Kf2.} 52. Rh5 Ra4+ 53. Kb3 Rxa5) 52. a6 $11 {[%emt 0:01:04]} g2 {[%emt 0:00:23]} (52... Rf6 $5 53. a7 (53. Rh1+ $2 Kf2 $19) 53... Ra6+ 54. Kb3 g2 55. Rf7+ Ke2 $15) 53. Rg7 $2 {[%emt 0:00:23][%mdl 8192]} (53. a7 $11 Rf8 54. Rf7+ Rxf7 55. a8=Q) 53... Rf6 {[%emt 0:00:14] A wild game.  Weighted Error Value: White=0.69/Black=0.40} 0-1

[Event "Czech Open-Rapid 2022"]
[Site "Pardubice"]
[Date "2022.07.21"]
[Round "4.21"]
[White "Chrz, Pavel"]
[Black "Klimakovs, Sergejs"]
[Result "0-1"]
[ECO "B50"]
[WhiteElo "1986"]
[BlackElo "2266"]
[Annotator "RC"]
[PlyCount "102"]
[EventDate "2022.07.20"]
[EventType "swiss"]
[EventCountry "CZE"]
[SourceTitle "playchess.com"]
[Source "ChessBase"]
[SourceQuality "1"]
[TimeControl "1200+10"]

1. e4 {[%emt 0:00:19]} c5 {[%emt 0:00:01]} 2. Nf3 {[%emt 0:00:14]} d6 {[%emt 0:00:01]} 3. c3 {[%emt 0:00:19]} Nf6 {[%emt 0:00:05]} 4. Be2 {[%emt 0:00:08]} e5 {[%emt 0:00:09]} 5. O-O {[%emt 0:00:27]} Be7 {[%emt 0:00:01]} 6. Bb5+ {[%emt 0:02:38]} Nbd7 {[%emt 0:00:14]} 7. Re1 {[%emt 0:00:08]} O-O {[%emt 0:00:08]} 8. d4 {[%emt 0:00:12]} Qc7 {[%emt 0:00:10]} 9. Bg5 {[%emt 0:02:24]} a6 {[%emt 0:00:26]} 10. Ba4 {[%emt 0:01:51]} b5 {[%emt 0:00:10]} 11. Bb3 {[%emt 0:01:32]} Re8 {[%emt 0:01:35]} 12. Nbd2 {[%emt 0:01:30]} Bf8 {[%emt 0:00:43]} 13. d5 {[%emt 0:01:22]} h6 {[%emt 0:00:50]} 14. Be3 {[%emt 0:01:47]} g6 {[%emt 0:00:42]} 15. h3 {[%emt 0:00:38]} c4 {[%emt 0:00:50]} 16. Bc2 {[%emt 0:00:07]} Nc5 {[%emt 0:00:03]} 17. Qe2 {[%emt 0:02:09]} Bg7 {[%emt 0:00:18]} 18. a4 {[%emt 0:00:30]} Rb8 {[%emt 0:00:10]} 19. axb5 {[%emt 0:00:07]} axb5 {[%emt 0:00:01]} 20. b4 {[%emt 0:00:58]} cxb3 {[%emt 0:00:08]} 21. Nxb3 {[%emt 0:00:02]} Ncxe4 {[%emt 0:00:13]} 22. Ra7 {[%emt 0:02:37]} Rb7 {[%emt 0:00:09]} 23. Rxb7 {[%emt 0:00:30]} Bxb7 {[%emt 0:00:07]} 24. Bxe4 {[%emt 0:00:18]} Nxe4 {[%emt 0:00:02]} 25. Qxb5 {[%emt 0:00:01]} Nf6 {[%emt 0:00:28]} 26. c4 {[%emt 0:00:22]} Rb8 {[%emt 0:00:58]} 27. Bb6 {[%emt 0:00:27]} Qc8 {[%emt 0:00:05]} 28. Ba7 {[%emt 0:00:52]} Ra8 {[%emt 0:00:09]} 29. Ra1 {[%emt 0:00:17]} Qd7 {[%emt 0:00:24]} 30. Qxd7 {[%emt 0:00:04]} Nxd7 {[%emt 0:00:01]} 31. Ra5 {[%emt 0:00:14]} e4 {[%emt 0:00:18]} 32. Nfd4 {[%emt 0:00:05]} Ne5 {[%emt 0:00:01]} 33. Nd2 {[%emt 0:00:17]} Nd3 {[%emt 0:03:51]} 34. N4b3 {[%emt 0:00:07]} f5 {[%emt 0:00:42]} 35. Bb6 {[%emt 0:00:11]} Rxa5 {[%emt 0:00:09]} 36. Nxa5 {[%emt 0:00:04]} Ba6 {[%emt 0:00:07]} 37. Nc6 {[%emt 0:00:09]} Kf7 {[%emt 0:00:55]} 38. Bc7 {[%emt 0:00:05]} Bc3 {[%emt 0:00:18]} 39. Nb3 {[%emt 0:00:27]} Bxc4 {[%emt 0:00:11]} 40. Nbd4 {[%emt 0:00:00]} Be1 {[%emt 0:00:16]} 41. Bxd6 {[%emt 0:00:03]} Bxf2+ {[%emt 0:00:06]} 42. Kh2 {[%emt 0:00:01]} Bxd5 {[%emt 0:00:03]} 43. Ne5+ {[%emt 0:00:04]} Nxe5 {[%emt 0:00:53]} 44. Bxe5 {[%emt 0:00:02]} Bh4 {[%emt 0:00:06]} 45. Ne2 {[%emt 0:00:12]} Bf6 {[%emt 0:00:09]} 46. Bc7 {[%emt 0:00:06]} g5 {[%emt 0:00:05]} 47. Ng3 {[%emt 0:00:03]} Ke6 {[%emt 0:00:03]} 48. Nh5 {[%emt 0:00:52]} Be5+ {[%emt 0:00:40]} 49. Bxe5 {[%emt 0:00:03]} Kxe5 {[%emt 0:00:01]} 50. Kg3 {[%emt 0:00:04]} f4+ {[%emt 0:00:17]} 51. Kf2 {[%emt 0:00:02]} e3+ {[%emt 0:00:08]} 0-1

[Event "Czech Open-Rapid 2022"]
[Site "Pardubice"]
[Date "2022.07.21"]
[Round "4.22"]
[White "Goroshkov, Maksym"]
[Black "Tolmacevs, Artjoms"]
[Result "1-0"]
[ECO "B22"]
[WhiteElo "2240"]
[BlackElo "2022"]
[Annotator "TA"]
[PlyCount "83"]
[EventDate "2022.07.20"]
[EventType "swiss"]
[EventCountry "CZE"]
[SourceTitle "playchess.com"]
[Source "ChessBase"]
[SourceQuality "1"]
[TimeControl "1200+10"]

{[%evp 9,82,4,6,2,10,3,15,20,27,30,32,31,16,15,21,22,104,24,44,0,60,-60,-62,-90,-62,-90,-49,-38,-45,-44,-50,-52,-31,-39,-31,-30,-21,-17,-24,-13,-16,-53,0,-48,0,0,11,19,43,0,85,63,93,12,53,52,56,70,200,205,179,195,203,208,317,307,317,317,317,310,317,317,308,293,29999]} 1. e4 {[%emt 0:00:03][%cal Be2e4,Be4e5][%mdl 32]} c5 {[%emt 0:00:02]} 2. c3 {[%emt 0:00:00]} Nf6 3. e5 Nd5 {[%emt 0:00:03]} 4. Bc4 {[%emt 0:00:01]} Nb6 {[%emt 0:00:11]} 5. Bb3 {[%emt 0:00:02]} d5 {[%emt 0:00:00]} 6. exd6 {[%emt 0:00:01] B22: Sicilian: 2 c3.} Qxd6 {[%emt 0:00:02]} 7. d4 {[%emt 0:00:01] [#] Recently 7.Na3 got a lot of attention.} Bf5 $146 {[%emt 0:03:33]} ({Predecessor:} 7... cxd4 8. cxd4 g6 9. Nf3 Bg7 10. Nc3 O-O 11. Ne4 Qd8 12. Ne5 Nc6 13. Nxc6 bxc6 {½-½ (37) Khamrakulov,I (2416)-Delgado Ramirez,N (2596) Ciudad Real 2021}) 8. dxc5 {[%emt 0:00:26] The position is equal.} Qxc5 {[%emt 0:00:41]} 9. Be3 {[%emt 0:00:02]} Qc7 {[%emt 0:00:41]} 10. Nf3 {[%emt 0:00:07] Hoping for Na3.} ({Reject} 10. Qh5 e6 $15) 10... e6 {[%emt 0:01:51]} 11. Nd4 {[%emt 0:00:10]} Bg6 {[%emt 0:00:20]} 12. O-O {[%emt 0:00:02]} a6 {[%emt 0:02:16] [#]} (12... Be7 $11) 13. Qe2 {[%emt 0:01:02]} ({White should play} 13. Bxe6 $1 $16 {[%cal Of1e1][%mdl 512] Re1! is the strong threat.} Bd6 {[#]} (13... Bc5 14. Bb3) 14. g3 $1) 13... Be7 $11 {[%emt 0:02:27]} 14. a4 {[%emt 0:03:00]} Nd5 {[%emt 0:03:04]} (14... O-O $11) 15. Qf3 {[%emt 0:00:38]} (15. Bxd5 $14 exd5 16. Nd2) 15... Nxe3 $15 {[%emt 0:00:14]} 16. fxe3 {[%emt 0:00:01]} Nc6 {[%emt 0:02:15]} 17. Nd2 {[%emt 0:00:22][%cal Bb1d2,Bd2f3,Bf3d4][%mdl 32]} O-O {[%emt 0:02:24]} 18. Nxc6 {[%emt 0:00:12]} Qxc6 {[%emt 0:00:12]} (18... bxc6 {is interesting.} 19. Nc4 Rab8 20. Ba2 Bd3) 19. Qxc6 {[%emt 0:00:08]} bxc6 {[%emt 0:00:01]} 20. Bc4 {[%emt 0:00:01]} Rfd8 {[%emt 0:00:28]} 21. Nf3 {[%emt 0:00:07]} Bf6 {[%emt 0:01:13]} 22. Rfd1 {[%emt 0:00:18]} Rxd1+ {[%emt 0:00:12]} 23. Rxd1 {[%emt 0:00:01]} Bc2 {[%emt 0:00:01][%csl LRa4,LRd1]} 24. Ra1 {[%emt 0:00:11]} a5 {[%emt 0:00:42]} 25. Ra2 {[%emt 0:00:50]} Be4 {[%emt 0:00:54]} (25... Rb8 $15 26. b4 Bb1) 26. Nd4 {[%emt 0:00:32]} (26. Nd2 $11 Bc2 27. Nb3) 26... c5 (26... Rd8 $15 {is more appropriate.}) 27. Nb3 $11 Rd8 {[%emt 0:00:18]} 28. Ra1 {[%emt 0:00:06] Prevents Rd1+.} Bg5 {[%emt 0:00:21]} 29. Kf2 {[%emt 0:00:09]} (29. Nxa5 $5 {[%cal Ra5b3]} Bxe3+ 30. Kh1 $11) 29... Ba8 {[%emt 0:00:18]} (29... Be7 $1 $11 {remains equal.}) 30. Re1 {[%emt 0:00:10]} Bc6 {[%emt 0:00:09]} 31. Nxc5 {[%emt 0:00:10]} (31. Bb5 $16 Rb8 32. c4) 31... Be7 {[%emt 0:00:12] This bishop pair is nice.} 32. Nb3 {[%emt 0:00:30]} Bxa4 {[%emt 0:00:02]} 33. Nxa5 {[%emt 0:00:02]} Bd1 {[%emt 0:00:18] This costs Black the game.} (33... Be8 $14) 34. Nc6 $18 {[%emt 0:00:08][%csl LRd8,LRe7]} Rd2+ {[%emt 0:00:01]} 35. Be2 {[%emt 0:00:05]} Bh4+ {[%emt 0:00:19]} 36. g3 {[%emt 0:00:01]} Ba4 {[%emt 0:00:09]} (36... Bxe2 {might work better.} 37. Rxe2 Rd6) 37. Nd4 {[%emt 0:00:40]} Bf6 {[%emt 0:00:08]} 38. Ra1 {[%emt 0:00:00]} Be8 {[%emt 0:00:16]} 39. Ra8 {[%emt 0:00:01][%cal Ra8e8]} Kf8 {[%emt 0:00:01]} 40. Ke1 {[%emt 0:00:07]} Rxb2 {[%emt 0:00:02]} 41. Bb5 $1 {[%emt 0:00:00][%csl Gb5][%cal Ra8e8]} e5 $2 {[%emt 0:00:22]} (41... Rb1+ $2 42. Ke2 Rxb5 43. Nxb5 $18) (41... Rxb5 $18 42. Nxb5 Ke7) 42. Rxe8# {[%emt 0:00:02] Weighted Error Value: White=0.21 (precise) /Black=0.51} 1-0